fUST/lending_fUST_20240518
["ID","MTS","AMOUNT","RATE_DAILY","PERIOD"]
[327308253,1715979038396,-500.0,0.00016438,2]
[327308256,1715979038406,-500.0,0.00016438,2]
[327308258,1715979038415,-501.61020986,0.00016438,2]
[327308260,1715979038424,-500.0,0.00016438,2]
[327308261,1715979038432,-500.0,0.00016438,2]
[327308264,1715979038443,-500.0,0.00016438,4]
[327308266,1715979038452,-563.83042221,0.00016438,2]
[327308268,1715979038460,-500.0,0.00016438,2]
[327308270,1715979038469,-500.0,0.00016438,2]
[327308271,1715979038478,-500.0,0.00016438,2]
[327308273,1715979038487,-500.0,0.00016438,2]
[327308276,1715979038496,-500.0,0.00016438,2]
[327308278,1715979038508,-500.0,0.00016438,2]
[327308279,1715979038517,-500.0,0.00016438,2]
[327308281,1715979038526,-500.0,0.00016438,2]
[327308283,1715979038535,-500.0,0.00016438,2]
[327308285,1715979038546,-563.44,0.00016438,2]
[327308287,1715979038556,-500.0,0.00016438,2]
[327308289,1715979038564,-500.0,0.00016438,2]
[327308291,1715979038573,-500.0,0.00016438,2]
[327308294,1715979038584,-500.0,0.00016438,2]
[327308296,1715979038593,-500.0,0.00016438,2]
[327308298,1715979038602,-500.0,0.00016438,2]
[327308300,1715979038611,-500.0,0.00016438,2]
[327308301,1715979038620,-500.0,0.00016438,2]
[327308303,1715979038629,-500.0,0.00016438,2]
[327308305,1715979038639,-500.0,0.00016438,2]
[327308308,1715979038648,-500.66826848,0.00016438,2]
[327308309,1715979038658,-500.0,0.00016438,2]
[327308312,1715979038667,-500.0,0.00016438,2]
[327308313,1715979038676,-500.0,0.00016438,2]
[327308316,1715979038687,-500.0,0.00016438,2]
[327308318,1715979038697,-500.0,0.00016438,2]
[327308319,1715979038706,-500.0,0.00016438,2]
[327308322,1715979038715,-276.76158885,0.00016438,2]
[327308324,1715979038724,-500.0,0.00016438,2]
[327308325,1715979038734,-601.63243183,0.00016438,2]
[327308327,1715979038743,-500.0,0.00016438,2]
[327308329,1715979038753,-500.0,0.00016438,2]
[327308331,1715979038762,-500.0,0.00016438,2]
[327308333,1715979038771,-511.18308324,0.00016438,2]
[327308336,1715979038781,-514.1380679,0.00016438,2]
[327308338,1715979038790,-521.25921931,0.00016438,2]
[327308340,1715979038798,-500.0,0.00016438,2]
[327308342,1715979038808,-506.42610505,0.00016438,2]
[327308343,1715979038816,-600.0,0.00016438,2]
[327308345,1715979038826,-500.0,0.00016438,2]
[327308347,1715979038835,-1000.0,0.00016438,2]
[327308349,1715979038844,-531.34110359,0.00016438,2]
[327308352,1715979038855,-500.0,0.00016438,2]
[327308353,1715979038864,-500.0,0.00016438,2]
[327308355,1715979038873,-503.02130566,0.00016438,2]
[327308357,1715979038882,-466.43373108,0.00016438,2]
[327308359,1715979038890,-500.0,0.00016438,2]
[327308361,1715979038899,-500.0,0.00016438,2]
[327308363,1715979038908,-564.9621803,0.00016438,2]
[327308365,1715979038918,-500.0,0.00016438,2]
[327308367,1715979038927,-500.0,0.00016438,2]
[327308369,1715979038936,-500.0,0.00016438,2]
[327308371,1715979038944,-500.0,0.00016438,2]
[327308373,1715979038953,-500.0,0.00016438,2]
[327308375,1715979038963,-500.0,0.00016438,2]
[327308377,1715979038972,-500.0,0.00016438,2]
[327308379,1715979038980,-500.0,0.00016438,2]
[327308381,1715979038990,-500.0,0.00016438,2]
[327308383,1715979038998,-505.14416001,0.00016438,2]
[327308385,1715979039007,-500.0,0.00016438,2]
[327308387,1715979039016,-500.0,0.00016438,2]
[327308389,1715979039025,-500.0,0.00016438,2]
[327308391,1715979039034,-501.37931915,0.00016438,2]
[327308393,1715979039044,-500.77792071,0.00016438,2]
[327308395,1715979039053,-500.0,0.00016438,2]
[327308397,1715979039062,-504.61244209,0.00016438,2]
[327308399,1715979039072,-500.90709511,0.00016438,2]
[327308401,1715979039081,-500.0,0.00016438,2]
[327308403,1715979039091,-315.08786585,0.00016438,2]
[327308405,1715979039100,-504.96722018,0.00016438,2]
[327308407,1715979039109,-501.44891104,0.00016438,2]
[327308409,1715979039118,-511.10521844,0.00016438,2]
[327308411,1715979039127,-500.0,0.00016438,2]
[327308413,1715979039136,-500.0,0.00016438,2]
[327308415,1715979039145,-500.0,0.00016438,2]
[327308418,1715979039154,-500.0,0.00016438,2]
[327308420,1715979039164,-501.04937002,0.00016438,2]
[327308422,1715979039173,-500.0,0.00016438,2]
[327308424,1715979039182,-500.0,0.00016438,2]
[327308425,1715979039191,-500.0,0.00016438,2]
[327308428,1715979039201,-292.53005039,0.00016438,2]
[327308430,1715979039211,-500.0,0.00016438,2]
[327308431,1715979039220,-601.83666588,0.00016438,2]
[327308433,1715979039230,-500.0,0.00016438,2]
[327308435,1715979039239,-500.0,0.00016438,2]
[327308437,1715979039248,-500.0,0.00016438,2]
[327308439,1715979039257,-500.0,0.00016438,2]
[327308441,1715979039266,-504.05135714,0.00016438,2]
[327308443,1715979039276,-500.0,0.00016438,2]
[327308445,1715979039285,-500.0,0.00016438,2]
[327308447,1715979039294,-504.29461321,0.00016438,2]
[327308449,1715979039304,-500.0,0.00016438,2]
[327308451,1715979039314,-500.0,0.00016438,2]
[327308454,1715979039323,-531.82153831,0.00016438,2]
[327308456,1715979039332,-500.0,0.00016438,2]
[327308459,1715979039342,-500.0,0.00016438,2]
[327308461,1715979039351,-500.0,0.00016438,2]
[327308463,1715979039361,-500.0,0.00016438,2]
[327308465,1715979039370,-500.0,0.00016438,2]
[327308467,1715979039379,-500.0,0.00016438,2]
[327308468,1715979039389,-509.11158163,0.00016438,2]
[327308470,1715979039398,-156.42120637,0.00016438,2]
[327308472,1715979039408,-500.0,0.00016438,2]
[327308474,1715979039417,-502.51126909,0.00016438,2]
[327308477,1715979039426,-501.06667719,0.00016438,2]
[327308478,1715979039435,-504.6275065,0.00016438,2]
[327308480,1715979039445,-500.0,0.00016438,2]
[327308482,1715979039455,-505.83413611,0.00016438,2]
[327308484,1715979039464,-500.0,0.00016438,2]
[327308487,1715979039475,-500.0,0.00016438,2]
[327308488,1715979039485,-500.0,0.00016438,2]
[327308490,1715979039495,-582.49458125,0.00016438,2]
[327308492,1715979039508,-500.71646111,0.00016438,2]
[327308494,1715979039522,-500.0,0.00016438,2]
[327308497,1715979039532,-500.0,0.00016438,2]
[327308499,1715979039544,-500.0,0.00016438,2]
[327308501,1715979039554,-500.47313397,0.00016438,2]
[327308503,1715979039564,-500.0,0.00016438,2]
[327308505,1715979039574,-500.0,0.00016438,2]
[327308507,1715979039583,-500.0,0.00016438,2]
[327308509,1715979039595,-500.0,0.00016438,2]
[327308511,1715979039604,-500.0,0.00016438,2]
[327308513,1715979039613,-501.78493775,0.00016438,2]
[327308515,1715979039622,-500.0,0.00016438,2]
[327308517,1715979039631,-500.0,0.00016438,2]
[327308519,1715979039641,-500.0,0.00016438,2]
[327308521,1715979039650,-500.0,0.00016438,2]
[327308523,1715979039660,-500.0,0.00016438,2]
[327308525,1715979039670,-500.0,0.00016438,2]
[327308527,1715979039680,-500.0,0.00016438,2]
[327308529,1715979039690,-500.0,0.00016438,2]
[327308531,1715979039699,-502.35738942,0.00016438,2]
[327308533,1715979039709,-500.0,0.00016438,2]
[327308535,1715979039718,-500.0,0.00016438,2]
[327308537,1715979039728,-500.0,0.00016438,2]
[327308539,1715979039737,-500.47322055,0.00016438,2]
[327308541,1715979039747,-500.0,0.00016438,2]
[327308543,1715979039756,-599.76,0.00016438,2]
[327308545,1715979039766,-500.0,0.00016438,2]
[327308547,1715979039775,-500.0,0.00016438,2]
[327308549,1715979039784,-500.0,0.00016438,2]
[327308551,1715979039798,-500.0,0.00016438,2]
[327308553,1715979039806,-500.0,0.00016438,2]
[327308567,1715979039927,-500.0,0.00016438,2]
[327308570,1715979039938,-500.0,0.00016438,2]
[327308572,1715979039947,-500.0,0.00016438,2]
[327308573,1715979039956,-500.0,0.00016438,2]
[327308575,1715979039965,-508.34,0.00016438,2]
[327308577,1715979039974,-1313.78,0.00016438,2]
[327308579,1715979039983,-500.0,0.00016438,2]
[327308581,1715979039992,-500.0,0.00016438,2]
[327308583,1715979040003,-500.0,0.00016438,2]
[327308586,1715979040013,-500.0,0.00016438,2]
[327308588,1715979040023,-500.0,0.00016438,2]
[327308590,1715979040032,-500.0,0.00016438,2]
[327308592,1715979040043,-584.77878106,0.00016438,2]
[327308594,1715979040052,-500.0,0.00016438,2]
[327308596,1715979040061,-500.0,0.00016438,2]
[327308598,1715979040070,-158.21638616,0.00016438,2]
[327308600,1715979040079,-500.0,0.00016438,2]
[327308602,1715979040088,-511.18991099,0.00016438,2]
[327308604,1715979040098,-871.7,0.00016438,2]
[327308606,1715979040107,-500.0,0.00016438,2]
[327308608,1715979040116,-500.89923349,0.00016438,2]
[327308609,1715979040126,-500.0,0.00016438,2]
[327308612,1715979040135,-500.0,0.00016438,2]
[327308614,1715979040144,-500.0,0.00016438,2]
[327308616,1715979040154,-500.0,0.00016438,2]
[327308617,1715979040163,-501.73717795,0.00016438,2]
[327308619,1715979040171,-500.0,0.00016438,2]
[327308621,1715979040181,-500.0,0.00016438,2]
[327308623,1715979040190,-500.0,0.00016438,2]
[327308626,1715979040199,-500.0,0.00016438,2]
[327308630,1715979040209,-500.0,0.00016438,2]
[327308633,1715979040219,-502.33216634,0.00016438,2]
[327308635,1715979040228,-500.0,0.00016438,2]
[327308639,1715979040238,-151.0,0.00016438,2]
[327308641,1715979040247,-500.0,0.00016438,2]
[327308645,1715979040258,-518.52660179,0.00016438,2]
[327308648,1715979040268,-500.0,0.00016438,2]
[327308650,1715979040277,-500.0,0.00016438,2]
[327308652,1715979040287,-500.0,0.00016438,2]
[327308654,1715979040298,-500.0,0.00016438,2]
[327308656,1715979040308,-500.0,0.00016438,2]
[327308658,1715979040318,-500.0,0.00016438,2]
[327308660,1715979040327,-206.75056341,0.00016438,2]
[327308662,1715979040338,-500.0,0.00016438,2]
[327308663,1715979040347,-500.0,0.00016438,2]
[327308666,1715979040357,-500.0,0.00016438,2]
[327308668,1715979040366,-500.0,0.00016438,2]
[327308670,1715979040375,-500.0,0.00016438,2]
[327308671,1715979040385,-516.9,0.00016438,2]
[327308674,1715979040395,-500.0,0.00016438,2]
[327308676,1715979040404,-187.91517803,0.00016438,2]
[327308678,1715979040414,-500.0,0.00016438,2]
[327308680,1715979040423,-170.98823797,0.00016438,2]
[327308682,1715979040432,-506.37290017,0.00016438,2]
[327308684,1715979040442,-500.0,0.00016438,2]
[327308685,1715979040451,-500.0,0.00016438,2]
[327308688,1715979040461,-500.0,0.00016438,2]
[327308689,1715979040470,-505.89911409,0.00016438,2]
[327308691,1715979040480,-500.0,0.00016438,2]
[327308693,1715979040489,-501.4775317,0.00016438,2]
[327308695,1715979040498,-500.0,0.00016438,2]
[327308697,1715979040512,-500.0,0.00016438,2]
[327308699,1715979040522,-500.0,0.00016438,2]
[327308701,1715979040532,-500.0,0.00016438,2]
[327308703,1715979040542,-500.0,0.00016438,2]
[327308705,1715979040553,-1236.8,0.00016438,2]
[327308707,1715979040562,-500.0,0.00016438,2]
[327308709,1715979040571,-500.0,0.00016438,2]
[327308711,1715979040581,-500.0,0.00016438,2]
[327308713,1715979040593,-500.0,0.00016438,2]
[327308715,1715979040603,-599.06,0.00016438,2]
[327308717,1715979040612,-500.0,0.00016438,2]
[327308719,1715979040622,-500.0,0.00016438,2]
[327308721,1715979040630,-500.0,0.00016438,2]
[327308723,1715979040640,-500.0,0.00016438,2]
[327308725,1715979040649,-500.0,0.00016438,2]
[327308727,1715979040658,-500.0,0.00016438,2]
[327308729,1715979040667,-500.0,0.00016438,2]
[327308731,1715979040676,-500.0,0.00016438,2]
[327308733,1715979040686,-500.0,0.00016438,2]
[327308735,1715979040695,-500.0,0.00016438,2]
[327308737,1715979040703,-500.0,0.00016438,2]
[327308739,1715979040713,-500.0,0.00016438,2]
[327308741,1715979040722,-500.0,0.00016438,2]
[327308743,1715979040731,-500.0,0.00016438,2]
[327308745,1715979040740,-177.16,0.00016438,2]
[327308747,1715979040749,-500.0,0.00016438,2]
[327308749,1715979040758,-500.0,0.00016438,2]
[327308751,1715979040767,-500.0,0.00016438,2]
[327308753,1715979040776,-500.0,0.00016438,2]
[327308755,1715979040785,-500.0,0.00016438,2]
[327308757,1715979040796,-500.0,0.00016438,2]
[327308759,1715979040805,-500.0,0.00016438,2]
[327308761,1715979040814,-3365.59,0.00016438,2]
[327308763,1715979040823,-500.0,0.00016438,2]
[327308765,1715979040832,-500.0,0.00016438,2]
[327308767,1715979040841,-501.85975324,0.00016438,2]
[327308769,1715979040850,-500.0,0.00016438,2]
[327308771,1715979040859,-500.0,0.00016438,2]
[327308773,1715979040868,-544.46,0.00016438,2]
[327308775,1715979040877,-500.0,0.00016438,2]
[327308777,1715979040886,-663.84,0.00016438,2]
[327308779,1715979040895,-500.0,0.00016438,2]
[327308781,1715979040904,-500.0,0.00016438,2]
[327308783,1715979040914,-500.0,0.00016438,2]
[327308785,1715979040922,-500.0,0.00016438,2]
[327308787,1715979040931,-171.33584696,0.00016484,2]
[327308789,1715979040940,-274.09997115,0.000165,2]
[327308791,1715979040949,-12703.0,0.000165,2]
[327308793,1715979040959,-150.0,0.000165,2]
[327308795,1715979040968,-4221.46001999,0.00016565,2]
[327308797,1715979040978,-416.98047207,0.00016584,2]
[327308799,1715979040987,-500.0,0.00016712,4]
[327308801,1715979040996,-500.0,0.00016712,2]
[327308803,1715979041005,-500.0,0.00016712,2]
[327308805,1715979041013,-500.0,0.00016712,2]
[327308807,1715979041022,-500.0,0.00016712,2]
[327308809,1715979041031,-500.0,0.00016712,2]
[327308811,1715979041040,-500.0,0.00016712,2]
[327308813,1715979041049,-471.4,0.00016712,2]
[327308815,1715979041059,-500.0,0.00016712,2]
[327308817,1715979041068,-500.0,0.00016712,2]
[327308819,1715979041076,-629.93,0.00016712,2]
[327308821,1715979041086,-500.0,0.00016712,2]
[327308822,1715979041095,-500.0,0.00016712,2]
[327308824,1715979041104,-599.76,0.00016712,2]
[327308826,1715979041113,-500.0,0.00016712,2]
[327308828,1715979041123,-500.0,0.00016712,2]
[327308830,1715979041131,-1313.78,0.00016712,2]
[327308832,1715979041140,-500.0,0.00016712,2]
[327308834,1715979041149,-500.0,0.00016712,2]
[327308836,1715979041159,-871.7,0.00016712,2]
[327308838,1715979041167,-434.18,0.00016712,2]
[327308840,1715979041176,-529.62,0.00016712,2]
[327308842,1715979041186,-500.0,0.00016712,2]
[327308844,1715979041195,-500.0,0.00016712,2]
[327308846,1715979041205,-1236.8,0.00016712,2]
[327308848,1715979041214,-246.01,0.00016712,2]
[327308850,1715979041222,-599.06,0.00016712,2]
[327308853,1715979041236,-297.34,0.00016712,2]
[327308855,1715979041248,-166.19,0.00016712,2]
[327308858,1715979041260,-159.8,0.00016712,2]
[327308860,1715979041272,-447.75220669,0.00016712,2]
[327308862,1715979041285,-3365.59,0.00016712,2]
[327308864,1715979041296,-560.01,0.00016712,2]
[327308866,1715979041306,-500.0,0.00016712,2]
[327308868,1715979041316,-663.84,0.00016712,2]
[327308870,1715979041329,-150.0,0.00016742,3]
[327308873,1715979041340,-150.0,0.00016742,2]
[327308875,1715979041351,-1681.89915885,0.00016981,2]
[327308877,1715979041362,-1704.29237534,0.00016982,2]
[327308879,1715979041373,-500.0,0.00016986,4]
[327308881,1715979041384,-500.0,0.00016986,2]
[327308884,1715979041396,-316.4,0.00016986,2]
[327308886,1715979041408,-500.0,0.00016986,2]
[327308888,1715979041419,-243.52,0.00016986,2]
[327308890,1715979041432,-500.0,0.00016986,2]
[327308893,1715979041445,-500.0,0.00016986,2]
[327308895,1715979041456,-500.0,0.00016986,2]
[327308898,1715979041471,-599.76,0.00016986,2]
[327308900,1715979041482,-494.2,0.00016986,2]
[327308902,1715979041493,-234.99,0.00016986,2]
[327308904,1715979041505,-1313.78,0.00016986,2]
[327308906,1715979041518,-500.0,0.00016986,2]
[327308909,1715979041529,-871.7,0.00016986,2]
[327308911,1715979041542,-500.0,0.00016986,2]
[327308913,1715979041555,-500.0,0.00016986,2]
[327308916,1715979041566,-1236.8,0.00016986,2]
[327308918,1715979041577,-599.06,0.00016986,2]
[327308920,1715979041591,-3365.59,0.00016986,2]
[327308922,1715979041600,-663.84,0.00016986,2]
[327308924,1715979041610,-630.26406823,0.00017053,2]
[327308926,1715979041621,-500.0,0.0001726,4]
[327308928,1715979041631,-306.43,0.0001726,2]
[327308930,1715979041642,-500.0,0.0001726,2]
[327308933,1715979041653,-500.0,0.0001726,2]
[327308935,1715979041666,-500.0,0.0001726,2]
[327308937,1715979041677,-322.62773313,0.0001726,2]
[327308938,1715979041688,-599.76,0.0001726,2]
[327308939,1715979041698,-1313.78,0.0001726,2]
[327308940,1715979041710,-500.0,0.0001726,2]
[327308941,1715979041721,-871.7,0.0001726,2]
[327308942,1715979041734,-500.0,0.0001726,2]
[327308943,1715979041745,-500.0,0.0001726,2]
[327308944,1715979041757,-1236.8,0.0001726,2]
[327308945,1715979041767,-599.06,0.0001726,2]
[327308946,1715979041777,-3365.59,0.0001726,2]
[327308947,1715979041786,-663.84,0.0001726,2]
[327308948,1715979041798,-204.3360346,0.00017347,2]
[327308949,1715979041807,-204.3360345,0.00017347,2]
[327308950,1715979041818,-150.0,0.00017493,2]
[327308951,1715979041829,-500.0,0.00017534,4]
[327308952,1715979041840,-495.3,0.00017534,2]
[327308953,1715979041852,-500.0,0.00017534,2]
[327308954,1715979041863,-500.0,0.00017534,2]
[327308956,1715979041875,-599.76,0.00017534,2]
[327308958,1715979041886,-1313.78,0.00017534,2]
[327308960,1715979041895,-500.0,0.00017534,2]
[327308962,1715979041905,-871.7,0.00017534,2]
[327308964,1715979041916,-500.0,0.00017534,2]
[327308966,1715979041926,-500.0,0.00017534,2]
[327308969,1715979041938,-1236.8,0.00017534,2]
[327308971,1715979041949,-599.06,0.00017534,2]
[327308973,1715979041959,-3365.59,0.00017534,2]
[327308975,1715979041969,-663.84,0.00017534,2]
[327308977,1715979041980,-204.70781768,0.00017808,2]
[327308979,1715979041990,-4324.56971438,0.00017808,2]
[327308981,1715979042000,-500.0,0.00017808,4]
[327308984,1715979042012,-160.02,0.00017808,2]
[327308986,1715979042022,-500.0,0.00017808,2]
[327308988,1715979042032,-599.76,0.00017808,2]
[327308990,1715979042043,-1313.78,0.00017808,2]
[327308992,1715979042053,-500.0,0.00017808,2]
[327308994,1715979042063,-871.7,0.00017808,2]
[327308996,1715979042074,-450.18599718,0.00017808,2]
[327308998,1715979042084,-500.0,0.00017808,2]
[327309000,1715979042095,-1236.8,0.00017808,2]
[327309002,1715979042106,-599.06,0.00017808,2]
[327309005,1715979042117,-3365.59,0.00017808,2]
[327309007,1715979042127,-663.84,0.00017808,2]
[327309009,1715979042137,-10448.86120355,0.00017898,2]
[327309011,1715979042148,-620.51320341,0.00017906,2]
[327309013,1715979042158,-1045.42726392,0.00018,2]
[327309015,1715979042168,-895.80593484,0.00018,2]
[327309017,1715979042180,-2161.83024524,0.00018,2]
[327309019,1715979042191,-189.80933307,0.00018,2]
[327309022,1715979042202,-153.0,0.00018037,2]
[327309025,1715979042212,-153.0,0.00018037,2]
[327309028,1715979042223,-153.0,0.00018037,2]
[327309031,1715979042233,-153.0,0.00018037,2]
[327309033,1715979042243,-153.0,0.00018037,2]
[327309035,1715979042255,-153.0,0.00018037,2]
[327309037,1715979042265,-495.0,0.0001807,2]
[327309039,1715979042276,-150.0,0.0001807,2]
[327309042,1715979042286,-500.0,0.00018082,4]
[327309044,1715979042300,-500.0,0.00018082,2]
[327309046,1715979042311,-599.76,0.00018082,2]
[327309050,1715979042321,-1313.78,0.00018082,2]
[327309054,1715979042331,-500.0,0.00018082,2]
[327309058,1715979042341,-871.7,0.00018082,2]
[327309062,1715979042351,-500.0,0.00018082,2]
[327309066,1715979042362,-1236.8,0.00018082,2]
[327309070,1715979042373,-599.06,0.00018082,2]
[327309073,1715979042384,-3365.59,0.00018082,2]
[327309077,1715979042395,-663.84,0.00018082,2]
[327309080,1715979042405,-204.3360345,0.00018169,2]
[327309082,1715979042416,-210.5969384,0.00018169,2]
[327309084,1715979042426,-203.8252479,0.00018169,2]
[327309086,1715979042437,-150.0,0.00018243,2]
[327309088,1715979042448,-150.0,0.00018326,2]
[327309090,1715979042458,-500.0,0.00018356,4]
[327309092,1715979042468,-500.0,0.00018356,2]
[327309094,1715979042479,-599.76,0.00018356,2]
[327309096,1715979042489,-1313.78,0.00018356,2]
[327309098,1715979042500,-523.5262449,0.00018356,2]
[327309101,1715979042515,-113.87654958,0.00018356,2]
[327309117,1715979042679,-500.0,0.00016438,2]
[327309119,1715979042689,-155.419,0.0001807,2]
[327309121,1715979042701,-757.82345042,0.00018356,2]
[327309137,1715979042711,-500.0,0.00018356,2]
[327309140,1715979042876,-1236.8,0.00018356,2]
[327309142,1715979042886,-599.06,0.00018356,2]
[327309144,1715979042896,-436.68156913,0.00018356,2]
[327309146,1715979042908,-447.09108572,0.00018356,2]
[327309430,1715979046140,-1792.17902681,0.00016437,2]
[327309431,1715979046149,-500.0,0.00016438,2]
[327309432,1715979046158,-500.0,0.00016438,2]
[327309433,1715979046166,-204.3360345,0.00017347,2]
[327309434,1715979046176,-2019.11121052,0.00018356,2]
[327311658,1715979935132,-583.59567712,9.986e-05,2]
[327311660,1715980026117,-154.70605849,9.98e-05,2]
[327311661,1715980026139,-528.36551602,9.98e-05,2]
[327311662,1715980026163,-690.11886562,9.98e-05,2]
[327311663,1715980026184,-1100.10953335,9.981e-05,2]
[327311664,1715980027094,-6050.60833028,9.981e-05,2]
[327311665,1715980033138,-1220.48332231,9.981e-05,2]
[327311666,1715980040093,-546.74672462,9.981e-05,2]
[327311668,1715980140917,2764.53877827,8.986e-05,2]
[327311669,1715980140946,19000.0,8.986e-05,2]
[327311670,1715980140976,3135.46122173,8.986e-05,2]
[327311671,1715980147172,-154.79876161,9.979e-05,2]
[327311672,1715980147193,-492.79282332,9.979e-05,2]
[327311673,1715980147214,-486.58772314,9.98e-05,2]
[327311674,1715980147239,-12519.60837291,9.98e-05,2]
[327311675,1715980151109,-6705.16016843,9.98e-05,2]
[327311676,1715980151140,-1017.87782524,9.98e-05,2]
[327311677,1715980151161,-2596.99709495,9.981e-05,2]
[327311678,1715980151187,-26204.08668533,9.981e-05,2]
[327311679,1715980151208,-309.35461895,9.982e-05,2]
[327311680,1715980151362,-625.89879664,9.982e-05,2]
[327311681,1715980151386,-154.9687837,9.982e-05,2]
[327311682,1715980151410,-15540.4085929,9.982e-05,2]
[327311683,1715980152089,-6610.2285,9.982e-05,2]
[327311684,1715980153103,-3364.81578988,9.982e-05,2]
[327311685,1715980153123,-1349.86150143,9.983e-05,2]
[327311686,1715980153146,-154.87594702,9.985e-05,2]
[327311687,1715980153170,-171.8232407,9.989e-05,2]
[327311688,1715980153193,-273.37336231,9.99e-05,2]
[327311689,1715980153213,-158.1082683,9.99e-05,2]
[327311690,1715980153234,-4341.22156356,9.99e-05,2]
[327311691,1715980153260,-1553.34532039,9.99e-05,2]
[327311692,1715980153280,-178.61091542,9.99e-05,2]
[327311693,1715980153300,-1496.16357216,9.994e-05,2]
[327311694,1715980153321,-255.27637791,9.994e-05,2]
[327311695,1715980153340,-452.19363226,9.994e-05,2]
[327311696,1715980153361,-243.14259596,9.994e-05,2]
[327311697,1715980153381,-1056.92606583,9.994e-05,2]
[327311698,1715980153400,-338.51361956,9.994e-05,2]
[327311699,1715980153419,-517.86036261,9.994e-05,2]
[327311700,1715980153438,-154.7215013,9.994e-05,2]
[327311701,1715980153459,-461.00029486,9.994e-05,2]
[327311702,1715980153480,-899.59612376,9.994e-05,2]
[327311703,1715980153501,-194.35454453,9.994e-05,2]
[327311704,1715980153522,-292.53005039,9.996e-05,2]
[327311705,1715980153542,-409.98831424,9.999e-05,2]
[327311706,1715980153562,-1450.2482319,0.0001,2]
[327311707,1715980153582,-9397.51147343,0.0001,2]
[327311708,1715980153602,-186.62,0.00010959,2]
[327311709,1715980153622,-155.52,0.00010959,2]
[327311710,1715980153642,-777.6,0.00010959,2]
[327311711,1715980153663,-389.26040567,0.00011808,2]
[327311712,1715980153682,-379.7571626,0.00011908,2]
[327311713,1715980153701,-389.26040563,0.00013009,2]
[327311714,1715980153720,-802.29731,0.00013939,2]
[327311715,1715980153740,-7809.24,0.00014,2]
[327311716,1715980153760,-389.26040563,0.0001421,2]
[327311717,1715980163341,2012.3112495,9.979e-05,2]
[327311718,1715980167003,12051.60006446,9.979e-05,2]
[327311719,1715980167030,15061.62564432,9.979e-05,2]
[327311720,1715980167053,15098.90672979,9.979e-05,2]
[327311721,1715980167080,15107.731312,9.979e-05,2]
[327311777,1715980232043,-2074.38865649,9.979e-05,2]
[327311779,1715980232052,-372.51310673,9.979e-05,2]
[327311781,1715980232064,-2391.27133664,9.979e-05,2]
[327311783,1715980232073,-602.325246,0.00013998,2]
[327311785,1715980232084,-6507.7,0.00014899,2]
[327311787,1715980232093,-1469.04510191,0.000149,2]
[327311789,1715980232103,-155.70416226,0.000149,2]
[327311791,1715980232112,-9558.14823448,0.00014996,2]
[327311792,1715980232121,-996.84590039,0.00014997,2]
[327311794,1715980232130,-817.80441059,0.00014998,2]
[327311796,1715980232139,-20239.26546952,0.00014998,2]
[327311798,1715980232148,-380.82466496,0.00014999,2]
[327311799,1715980232157,-1449.90572658,0.00014999,2]
[327311801,1715980232167,-1148.90229176,0.00015,2]
[327311803,1715980232176,-2400.26192892,0.00015,2]
[327311805,1715980232185,-942.40757179,0.00015,2]
[327311807,1715980232194,-79389.97812083,0.00015,2]
[327311856,1715980238054,-610.02187917,0.00015,2]
[327311858,1715980238063,-2107.25657902,0.00015,2]